{"text_format":"1","workbook":"xlsx","n_sheets":5,"sheets":["Working","Instruction","Survey","Results","Status"],"not_rendered":{"charts":1,"images":1,"macros":1,"external_links":0,"defined_names":0,"comments":0,"pivot_tables":0},"unopened":[],"bounds":{"document_bytes":16777216,"sheet_cells":100000,"rows_first":2000,"rows_last":500,"rows_between":2000,"halvings":0,"cell_chars":16384,"cell_head_chars":4096},"cells_cut":0,"cells_raw":0,"read":"whole","date_system":"1900"}

{"sheet":"Working","index":0,"n_rows":31,"n_cols":9,"rows_kept":31,"cut":false,"hidden":true,"merged":[]}
["Name","Organization","dove","owl","peacock","eagle"]
[{"$f":"Survey!D2","v":" "},{"$f":"Survey!D3","v":" "},{"$f":"F27","v":0},{"$f":"F28","v":0},{"$f":"F29","v":0},{"$f":"F30","v":0}]
[]
[]
[null,null,null,null,null,1,2,3,4]
[null,null,"Q-01",{"$f":"Survey!I6","v":0},{"$f":"IF(D6=1,F6,(IF(D6=2,G6,(IF(D6=3,H6,IF(D6=4,I6,\"\"))))))","v":""},"peacock","eagle","owl","dove"]
[null,null,"Q-02",{"$f":"Survey!I7","v":0},{"$f":"IF(D7=1,F7,(IF(D7=2,G7,(IF(D7=3,H7,IF(D7=4,I7,\"\"))))))","v":""},"eagle","peacock","dove","owl"]
[null,null,"Q-03",{"$f":"Survey!I8","v":0},"","owl","peacock","eagle","dove"]
[null,null,"Q-04",{"$f":"Survey!I9","v":0},"","owl","dove","peacock","eagle"]
[null,null,"Q-05",{"$f":"Survey!I10","v":0},"","dove","eagle","owl","peacock"]
[null,null,"Q-06",{"$f":"Survey!I11","v":0},"","eagle","owl","dove","peacock"]
[null,null,"Q-07",{"$f":"Survey!I12","v":0},"","dove","peacock","eagle","owl"]
[null,null,"Q-08",{"$f":"Survey!I13","v":0},"","peacock","owl","dove","eagle"]
[null,null,"Q-09",{"$f":"Survey!I14","v":0},"","eagle","dove","owl","peacock"]
[null,null,"Q-10",{"$f":"Survey!I15","v":0},"","dove","eagle","peacock","owl"]
[null,null,"Q-11",{"$f":"Survey!I16","v":0},"","owl","peacock","eagle","dove"]
[null,null,"Q-12",{"$f":"Survey!I17","v":0},"","peacock","eagle","owl","dove"]
[null,null,"Q-13",{"$f":"Survey!I18","v":0},"","eagle","peacock","dove","owl"]
[null,null,"Q-14",{"$f":"Survey!I19","v":0},"","dove","owl","eagle","peacock"]
[null,null,"Q-15",{"$f":"Survey!I20","v":0},"","owl","dove","peacock","eagle"]
[null,null,"Q-16",{"$f":"Survey!I21","v":0},"","peacock","owl","eagle","dove"]
[null,null,"Q-17",{"$f":"Survey!I22","v":0},"","dove","eagle","owl","peacock"]
[null,null,"Q-18",{"$f":"Survey!I23","v":0},"","owl","peacock","dove","eagle"]
[null,null,"Q-19",{"$f":"Survey!I24","v":0},"","eagle","dove","peacock","owl"]
[null,null,"Q-20",{"$f":"Survey!I25","v":0},"","dove","owl","eagle","peacock"]
[]
[null,null,null,"dove",{"$f":"COUNTIF(E$6:E$25,D27)","v":0},{"$f":"IF(E$31 <>0,E27/E$31,0 )","v":0}]
[null,null,null,"owl",{"$f":"COUNTIF(E$6:E$25,D28)","v":0},{"$f":"IF(E$31 <>0,E28/E$31,0 )","v":0}]
[null,null,null,"peacock",0,0]
[null,null,null,"eagle",0,0]
[null,null,null,"Total",{"$f":"SUM(E27:E30)","v":0}]

{"sheet":"Instruction","index":1,"n_rows":10,"n_cols":4,"rows_kept":10,"cut":false,"hidden":false,"merged":[]}
[]
[]
[null,null,"INSTRUCTIONS"]
[]
[null,null,1,"Go to Survey Sheet and enter Name and Organization"]
[null,null,2,"For each row select the best word/phrase that represents you"]
[null,null,3,"Complete all 20 rows and click \"Generate Results\". If you are unable to \"Generate Results\", go to 5."]
[null,null,4,"On the Result Sheet it will should you your profile bird and your characteristics."]
[null,null,5,"Save the Excel file."]
[null,null,6,"Email the file to soonhuat@sbfgroup.biz"]

{"sheet":"Survey","index":2,"n_rows":25,"n_cols":9,"rows_kept":25,"cut":false,"hidden":false,"merged":[[3,3,3,6],[1,1,1,2],[2,1,2,2],[1,3,1,4],[2,3,2,4]]}
[]
[null,"Name  ",null," "]
[null,"Organization  ",null," "]
[null,null,null,"For each row, please select the word/phrase that best represent you. Once you have done that, click on the button \"Generate Results\" and the results will appear in the \"Results\" sheet."]
[]
[null,null,null,null,null,null,null,null,0]
[null,null,null,null,null,null,null,null,0]
[null,null,null,null,null,null,null,null,0]
[null,null,null,null,null,null,null,null,0]
[null,null,null,null,null,null,null,null,0]
[null,null,null,null,null,null,null,null,0]
[null,null,null,null,null,null,null,null,0]
[null,null,null,null,null,null,null,null,0]
[null,null,null,null,null,null,null,null,0]
[null,null,null,null,null,null,null,null,0]
[null,null,null,null,null,null,null,null,0]
[null,null,null,null,null,null,null,null,0]
[null,null,null,null,null,null,null,null,0]
[null,null,null,null,null,null,null,null,0]
[null,null,null,null,null,null,null,null,0]
[null,null,null,null,null,null,null,null,0]
[null,null,null,null,null,null,null,null,0]
[null,null,null,null,null,null,null,null,0]
[null,null,null,null,null,null,null,null,0]
[null,null,null,null,null,null,null,null,0]

{"sheet":"Results","index":3,"n_rows":17,"n_cols":7,"rows_kept":17,"cut":false,"hidden":true,"merged":[[65,2,65,6],[66,3,66,6],[55,2,55,6],[56,3,56,6],[58,2,58,6],[59,3,59,6],[62,2,62,6],[63,3,63,6],[52,3,52,6],[41,2,41,6],[42,3,42,6],[44,2,44,6],[45,3,45,6],[48,2,48,6],[49,3,49,6],[51,2,51,6],[1,1,5,7],[8,1,8,2],[8,3,8,6],[9,1,9,2],[9,3,9,6]]}
[]
[]
[]
[]
[]
[]
[]
[]
[null,"Name  ",null,{"$f":"IF(Survey!D2=0,\"\",Survey!D2)","v":" "}]
[null,"Organization  ",null,{"$f":"IF(Survey!D3=0,\"\",Survey!D3)","v":" "}]
[]
[]
[null,null,null,1,2,3,4]
[null,null,null,"Dove","Owl","Peacock","Eagle"]
[]
[]
[null,null,null,{"$f":"Working!F27","v":0},{"$f":"Working!F28","v":0},{"$f":"Working!F29","v":0},{"$f":"Working!F30","v":0}]

{"sheet":"Status","index":4,"n_rows":2,"n_cols":6,"rows_kept":2,"cut":false,"hidden":false,"merged":[]}
["Name","Company","DOVE","OWL","PEACOCK","EAGLE"]
[{"$f":"Results!D9","v":" "},{"$f":"Results!D10","v":" "},{"$f":"Results!D17","v":0},{"$f":"Results!E17","v":0},{"$f":"Results!F17","v":0},{"$f":"Results!G17","v":0}]